bitfinex-derivatives/quotes_BTCF0:USTF0_20241231
["timestamp","ask_amount","ask_price","bid_price","bid_amount"]
[1735621123141,0.003,92541.0,92540.0,0.054119]
[1735621125641,0.054117,92544.0,92540.0,0.054119]
[1735621125937,0.003,92541.0,92540.0,0.054119]
[1735621126532,0.054117,92544.0,92540.0,0.054119]
[1735621127644,0.054117,92544.0,92540.0,0.034119]
[1735621129331,0.054117,92544.0,92543.0,0.054118]
[1735621130647,0.055117,92544.0,92543.0,0.054118]
[1735621132553,0.055117,92544.0,92543.0,0.034118]
[1735621137747,0.055117,92544.0,92537.0,1.50056]
[1735621137947,0.055117,92544.0,92543.0,0.054118]
[1735621141439,0.001,92544.0,92537.0,1.86136]
[1735621141740,0.05412,92539.0,92537.0,0.3608]
[1735621142746,0.05412,92539.0,92537.0,0.3408]
[1735621144046,0.05412,92539.0,92535.0,0.054122]
[1735621144440,0.05412,92539.0,92537.0,0.001]
[1735621144941,0.05412,92539.0,92535.0,0.054122]
[1735621145648,0.05412,92539.0,92534.0,0.00064]
[1735621145853,0.05412,92539.0,92534.0,0.3608]
[1735621147049,0.05412,92539.0,92538.0,0.054121]
[1735621147649,0.05412,92539.0,92538.0,0.034121]
[1735621152546,0.05412,92539.0,92534.0,0.3608]
[1735621152952,0.05412,92539.0,92538.0,0.054121]
[1735621158857,0.05412,92539.0,92538.0,0.034121]
[1735621162672,0.05412,92539.0,92534.0,0.3608]
[1735621162866,0.05412,92539.0,92538.0,0.054121]
[1735621163870,0.3608,92543.0,92534.0,0.3608]
[1735621164076,0.054122,92536.0,92534.0,0.3618]
[1735621164774,0.054122,92536.0,92534.0,0.3608]
[1735621164973,0.0343,92542.0,92529.0,0.07372085]
[1735621164974,0.054125,92530.0,92529.0,0.07372085]
[1735621165159,0.054126,92529.0,92524.0,0.054128]
[1735621165666,0.07372085,92540.0,92534.0,0.001]
[1735621165881,0.3608,92535.0,92521.0,0.00162106]
[1735621166069,0.05413,92522.0,92521.0,0.00162106]
[1735621166475,0.05313,92522.0,92521.0,0.00162106]
[1735621166967,0.05313,92522.0,92521.0,0.00862106]
[1735621167269,0.05013,92522.0,92521.0,0.00862106]
[1735621167469,0.05013,92522.0,92521.0,0.00162106]
[1735621167667,0.05013,92522.0,92521.0,0.00862106]
[1735621168072,0.05013,92522.0,92521.0,0.01162106]
[1735621168670,0.3608,92524.0,92521.0,0.01162106]
[1735621168866,0.3608,92524.0,92521.0,0.00962106]
[1735621169367,0.3608,92524.0,92521.0,0.00862106]
[1735621169772,0.054127,92527.0,92521.0,0.00862106]
[1735621170075,0.054127,92527.0,92521.0,0.00462106]
[1735621170460,0.393,92535.0,92521.0,0.00362106]
[1735621170675,0.054123,92533.0,92525.0,0.07372085]
[1735621171377,0.3608,92535.0,92525.0,0.07372085]
[1735621171561,0.054125,92531.0,92526.0,0.054127]
[1735621171766,0.054125,92531.0,92527.0,1.5]
[1735621172069,0.054125,92531.0,92526.0,0.054127]
[1735621172676,0.054125,92531.0,92526.0,1.534127]
[1735621173678,0.001,92533.0,92526.0,0.034127]
[1735621173973,0.054126,92529.0,92526.0,0.034127]
[1735621176673,0.3608,92535.0,92522.0,0.00056]
[1735621176869,0.054129,92523.0,92521.0,0.11399966]
[1735621177075,0.054129,92523.0,92521.0,0.00162106]
[1735621177574,0.054131,92521.0,92518.0,0.34242106]
[1735621177775,0.054123,92534.0,92518.0,0.34242106]
[1735621177776,0.054131,92520.0,92518.0,0.34242106]
[1735621178973,0.052131,92520.0,92518.0,0.34342106]
[1735621179779,0.052131,92520.0,92518.0,0.34642106]
[1735621180977,0.052131,92520.0,92518.0,0.40055306]
[1735621182681,0.052131,92520.0,92518.0,0.38055306]
[1735621182886,0.052131,92520.0,92519.0,1.5]
[1735621184171,0.052131,92520.0,92519.0,1.501]
[1735621185281,0.052131,92520.0,92519.0,1.504]
[1735621186985,0.26173436,92535.0,92519.0,1.504]
[1735621187479,0.26173436,92535.0,92520.0,0.1123786]
[1735621187675,0.26173436,92535.0,92519.0,1.50464]
[1735621187877,0.26173436,92535.0,92520.0,0.1123786]
[1735621188971,0.05413,92521.0,92520.0,0.1143786]
[1735621189176,0.05413,92521.0,92520.0,0.002]
[1735621189486,0.05413,92521.0,92520.0,1.502]
[1735621189784,0.05413,92521.0,92520.0,1.503]
[1735621190788,0.05413,92521.0,92520.0,0.003]
[1735621193580,0.06802619,92521.0,92520.0,0.003]
[1735621194578,0.05413,92521.0,92520.0,0.003]
[1735621196489,0.1123786,92560.0,92520.0,0.003]
[1735621196490,0.054127,92528.0,92523.0,0.054129]
[1735621196887,0.054127,92528.0,92524.0,1.5]
[1735621197087,0.054127,92528.0,92523.0,0.054129]
[1735621197591,0.054127,92528.0,92523.0,0.034129]
[1735621197985,0.01389076,92536.0,92523.0,0.034129]
[1735621198191,0.05412,92539.0,92523.0,0.034129]
[1735621198390,0.054127,92527.0,92523.0,0.034129]
[1735621198890,0.054127,92527.0,92523.0,0.035129]
[1735621199285,0.054127,92527.0,92523.0,0.034129]
[1735621199485,0.054127,92527.0,92523.0,0.035129]
[1735621202594,0.054127,92527.0,92523.0,0.001]
[1735621202996,0.054127,92527.0,92523.0,0.055129]
[1735621203800,0.3608,92534.0,92523.0,0.055129]
[1735621203991,0.054128,92526.0,92524.0,0.1123786]
[1735621204304,0.054128,92526.0,92523.0,0.055129]
[1735621205190,0.054128,92526.0,92523.0,0.054129]
[1735621205901,0.054128,92526.0,92523.0,0.055129]
[1735621206694,0.054129,92525.0,92523.0,0.001]
[1735621207499,0.054129,92525.0,92520.0,0.035131]
[1735621207695,0.054129,92525.0,92519.0,1.86136]
[1735621207696,0.054125,92531.0,92519.0,1.86136]
[1735621207901,0.054125,92531.0,92527.0,0.054127]
[1735621208109,0.054121,92538.0,92531.0,0.054124]
[1735621208299,0.054121,92538.0,92532.0,0.0636]
[1735621209295,0.003,92538.0,92536.0,0.054121]
[1735621209695,0.005,92538.0,92536.0,0.054121]
[1735621210403,0.003,92538.0,92536.0,0.054121]
[1735621210598,0.005,92538.0,92536.0,0.054121]
[1735621210806,0.059121,92538.0,92532.0,0.0636]
[1735621211003,0.059121,92538.0,92534.0,0.054122]
[1735621211500,0.005,92538.0,92536.0,0.054121]
[1735621211894,0.007,92538.0,92536.0,0.054121]
[1735621212301,0.007,92538.0,92537.0,1.5]
[1735621212493,0.006,92538.0,92537.0,1.48]
[1735621213303,0.3608,92544.0,92537.0,1.48]
[1735621213507,0.3608,92544.0,92543.0,0.054118]
[1735621214798,0.3648,92544.0,92543.0,0.055118]
[1735621215497,0.3688,92544.0,92543.0,0.055118]
[1735621215798,0.422917,92544.0,92543.0,0.001]
[1735621219009,0.054118,92543.0,92537.0,0.035121]
[1735621220004,0.054118,92543.0,92534.0,0.1123786]
[1735621220908,0.054118,92543.0,92539.0,0.05412]
[1735621221105,0.056118,92543.0,92539.0,0.05412]
[1735621221305,0.058118,92543.0,92539.0,0.05412]
[1735621221904,0.058118,92543.0,92542.0,0.054118]
[1735621221905,0.002,92543.0,92542.0,0.054118]
[1735621222110,0.35232476,92554.0,92552.0,0.054112]
[1735621222305,0.35232476,92554.0,92553.0,1.8608]
[1735621222615,0.35232476,92554.0,92553.0,1.9402]
[1735621223414,4e-05,92554.0,92553.0,1.9402]
[1735621224707,4e-05,92554.0,92553.0,1.9412]
[1735621225119,0.00404,92554.0,92553.0,1.9412]
[1735621225612,0.00404,92554.0,92553.0,1.95408465]
[1735621226312,0.00404,92554.0,92553.0,1.9412]
[1735621227010,0.00404,92554.0,92553.0,1.8418]
[1735621227216,0.00404,92554.0,92553.0,0.3418]
[1735621227513,0.00404,92554.0,92553.0,0.3218]
[1735621228104,0.00404,92554.0,92553.0,0.001]
[1735621229613,0.03574,92554.0,92553.0,0.001]
[1735621229813,0.06834,92554.0,92553.0,0.001]
[1735621231414,0.42914,92554.0,92553.0,0.001]
[1735621231617,0.42914,92554.0,92533.0,0.36242077]
[1735621231618,0.054123,92535.0,92533.0,0.36242077]
[1735621232311,0.0343,92534.0,92533.0,0.36242077]
[1735621232512,0.0669,92534.0,92533.0,0.34242077]
[1735621232706,0.0669,92534.0,92533.0,1.84242077]
[1735621233114,0.0669,92534.0,92533.0,0.34242077]
[1735621234619,0.0679,92534.0,92533.0,0.34242077]
[1735621234821,0.1003,92534.0,92533.0,0.34242077]
[1735621235521,0.1013,92534.0,92533.0,0.34242077]
[1735621236515,0.11779948,92534.0,92533.0,0.34242077]
[1735621237518,0.11779948,92534.0,92525.0,0.3608]
[1735621238725,0.054127,92527.0,92525.0,0.3608]
[1735621241220,0.054129,92524.0,92522.0,1.50056]
[1735621241423,0.3608,92531.0,92515.0,0.36084]
[1735621241424,0.054133,92516.0,92515.0,4e-05]
[1735621242418,0.053133,92516.0,92515.0,4e-05]
[1735621243123,0.053133,92516.0,92515.0,0.00204]
[1735621243723,0.052133,92516.0,92515.0,0.00204]
[1735621244615,0.052133,92516.0,92515.0,0.00704]
[1735621247324,0.3608,92517.0,92515.0,0.00704]
[1735621247529,0.054129,92525.0,92521.0,0.05413]
[1735621248632,0.054129,92525.0,92521.0,0.05613]
[1735621249131,0.054129,92524.0,92521.0,0.05613]
[1735621250028,0.054129,92524.0,92521.0,0.05713]
[1735621251529,0.054129,92524.0,92521.0,0.05613]
[1735621251728,0.3608,92531.0,92521.0,0.05713]
[1735621251925,0.05413,92523.0,92521.0,0.05713]
[1735621252331,0.05413,92523.0,92521.0,0.003]
[1735621252734,0.054131,92521.0,92516.0,0.4115]
[1735621253134,0.053131,92521.0,92516.0,0.4115]
[1735621253434,0.053131,92521.0,92517.0,0.054133]
[1735621253836,0.051131,92521.0,92517.0,0.054133]
[1735621255134,0.051131,92521.0,92517.0,0.058133]
[1735621256025,0.051131,92521.0,92517.0,0.059133]
[1735621257532,0.051131,92521.0,92517.0,0.039133]
[1735621261234,0.051131,92521.0,92519.0,0.054132]
[1735621262141,0.3608,92531.0,92517.0,0.005]
[1735621262439,0.3608,92531.0,92529.0,0.054125]
[1735621262629,0.3608,92531.0,92529.0,0.034125]
[1735621263030,0.09969017,92537.0,92536.0,0.054122]
[1735621263239,0.09969017,92537.0,92536.0,0.414922]
[1735621263738,0.3608,92550.0,92536.0,1.8608]
[1735621263937,0.3608,92550.0,92548.0,0.054114]
[1735621265034,0.3658,92550.0,92548.0,0.054114]
[1735621266135,0.3708,92550.0,92548.0,0.054114]
[1735621266541,0.3658,92550.0,92548.0,0.054114]
[1735621266744,0.3708,92550.0,92548.0,0.055114]
[1735621267040,0.01,92550.0,92548.0,0.001]
[1735621267242,0.064114,92550.0,92548.0,0.001]
[1735621267637,0.064114,92550.0,92546.0,0.3608]
[1735621267638,0.064114,92550.0,92546.0,0.3418]
[1735621267839,0.054115,92547.0,92546.0,0.3418]
[1735621268842,0.0325,92549.0,92528.0,0.3608]
[1735621269042,0.3608,92544.0,92532.0,0.054124]
[1735621269338,0.054122,92536.0,92532.0,0.054124]
[1735621269536,0.1123786,92542.0,92528.0,0.3608]
[1735621269741,0.05413,92523.0,92520.0,0.4731786]
[1735621269944,0.05413,92523.0,92521.0,0.05413]
[1735621272046,0.3608,92534.0,92532.0,0.054124]
[1735621272538,0.3608,92534.0,92532.0,0.034124]
[1735621272941,0.3608,92544.0,92543.0,0.054118]
[1735621273133,0.3608,92544.0,92543.0,1.554118]
[1735621273445,0.3608,92555.0,92553.0,0.054112]
[1735621274654,0.054107,92561.0,92553.0,0.054112]
[1735621274848,0.00604,92554.0,92553.0,0.055112]
[1735621275041,0.01204,92554.0,92553.0,0.055112]
[1735621275948,0.00704,92554.0,92553.0,0.055112]
[1735621276545,0.00104,92554.0,92553.0,0.055112]
[1735621277052,0.00104,92554.0,92553.0,0.054112]
[1735621277246,0.00304,92554.0,92553.0,0.054112]
[1735621277847,0.054112,92553.0,92551.0,0.3608]
[1735621278349,4e-05,92552.0,92551.0,0.3408]
[1735621280145,0.03244,92552.0,92551.0,0.3408]
[1735621280341,0.03344,92552.0,92551.0,0.3408]
[1735621280550,0.054118,92543.0,92536.0,0.054121]
[1735621280851,0.054118,92543.0,92537.0,0.054121]
[1735621281157,0.054118,92543.0,92534.0,0.00162077]
[1735621282457,0.054118,92543.0,92541.0,0.054118]
[1735621282647,0.03644,92552.0,92534.0,0.00162077]
[1735621282648,0.03244,92552.0,92534.0,0.00162077]
[1735621282954,4e-05,92552.0,92551.0,0.3608]
[1735621283652,4e-05,92552.0,92551.0,1.8608]
[1735621283858,0.3608,92564.0,92551.0,1.8608]
[1735621284058,0.3608,92564.0,92563.0,0.054106]
[1735621284650,0.054098,92578.0,92574.0,0.054099]
[1735621284846,0.0306,92586.0,92576.0,0.054098]
[1735621285043,0.054096,92580.0,92576.0,0.1664766]
[1735621285250,0.054096,92580.0,92576.0,0.054098]
[1735621285444,0.0306,92586.0,92570.0,0.2247572]
[1735621285750,0.0306,92586.0,92584.0,0.054093]
[1735621286247,4e-05,92585.0,92584.0,0.054093]
[1735621287254,4e-05,92585.0,92584.0,0.055093]
[1735621287654,4e-05,92585.0,92584.0,0.034093]
[1735621287960,0.00604,92585.0,92584.0,0.035093]
[1735621288947,0.01104,92585.0,92584.0,0.035093]
[1735621292559,0.01104,92585.0,92584.0,0.001]
[1735621292961,0.01104,92585.0,92584.0,0.055093]
[1735621297566,0.01104,92585.0,92584.0,0.035093]
[1735621302559,0.01104,92585.0,92582.0,0.3608]
[1735621302863,4e-05,92583.0,92582.0,0.3608]
[1735621304053,4e-05,92583.0,92582.0,0.3618]
[1735621304267,4e-05,92583.0,92582.0,0.001]
[1735621304467,0.00204,92583.0,92582.0,0.001]
[1735621305668,0.00204,92583.0,92582.0,1.501]
[1735621306161,0.00204,92583.0,92582.0,1.5]
[1735621306162,0.00704,92583.0,92582.0,1.5]
[1735621306364,0.00504,92583.0,92582.0,1.5]
[1735621306564,0.00704,92583.0,92582.0,1.5]
[1735621306763,0.00204,92583.0,92582.0,1.5]
[1735621307063,0.00704,92583.0,92582.0,1.5]
[1735621307659,0.00704,92583.0,92582.0,1.48]
[1735621309268,0.00704,92583.0,92581.0,0.054095]
[1735621309873,0.00504,92583.0,92581.0,1.554095]
[1735621310073,0.00104,92583.0,92581.0,1.554095]
[1735621310277,4e-05,92582.0,92581.0,1.554095]
[1735621311467,0.00104,92582.0,92581.0,1.554095]
[1735621312567,0.00104,92582.0,92581.0,1.534095]
[1735621316065,0.00104,92582.0,92568.0,0.1942988]
[1735621316066,0.055135,92582.0,92568.0,0.1942988]
[1735621316281,0.054102,92569.0,92568.0,0.1942988]
[1735621316470,0.054142,92569.0,92568.0,0.1942988]
[1735621317275,0.052104,92567.0,92566.0,1.50064]
[1735621317473,0.052104,92567.0,92566.0,1.5]
[1735621317681,0.047104,92567.0,92566.0,1.48]
[1735621317880,0.047144,92567.0,92566.0,1.48]
[1735621318481,4e-05,92567.0,92566.0,1.48]
[1735621319274,0.052143,92568.0,92566.0,1.48]
[1735621320177,0.3608,92578.0,92566.0,1.48]
[1735621320374,0.054099,92575.0,92573.0,0.0541]
[1735621320677,0.3608,92578.0,92575.0,0.054099]
[1735621320881,0.054097,92578.0,92575.0,0.054099]
[1735621321277,0.054101,92572.0,92571.0,0.3608]
[1735621321778,0.003,92575.0,92572.0,0.0541]
[1735621321972,0.003,92575.0,92571.0,0.3608]
[1735621322177,4e-05,92572.0,92571.0,0.3608]
[1735621322577,4e-05,92572.0,92571.0,0.3408]
[1735621323978,0.00104,92572.0,92571.0,0.3408]
[1735621324582,0.054096,92580.0,92579.0,0.054097]
[1735621324888,0.054093,92585.0,92582.0,0.054095]
[1735621325072,0.054094,92584.0,92582.0,0.054095]
[1735621326681,0.056094,92584.0,92582.0,0.054095]
[1735621327682,0.060094,92584.0,92582.0,0.034095]
[1735621328477,0.006,92584.0,92582.0,0.034095]
[1735621329475,0.005,92584.0,92582.0,0.034095]
[1735621329887,0.005,92584.0,92583.0,1.5]
[1735621330187,0.004,92584.0,92583.0,1.5]
[1735621330380,0.003,92584.0,92583.0,1.5]
[1735621330581,0.004,92584.0,92583.0,1.5]
[1735621330785,0.003,92584.0,92583.0,1.5]
[1735621332682,0.003,92584.0,92582.0,0.034095]
[1735621333188,4e-05,92583.0,92582.0,0.034095]
[1735621333691,4e-05,92583.0,92582.0,1.534095]
[1735621334581,4e-05,92583.0,92582.0,0.034095]
[1735621334889,0.00204,92583.0,92582.0,0.034095]
[1735621335282,0.056134,92583.0,92582.0,0.034095]
[1735621335487,0.054097,92578.0,92577.0,4e-05]
[1735621335891,0.054137,92578.0,92577.0,4e-05]
[1735621336691,0.06770908,92578.0,92577.0,4e-05]
[1735621337580,0.06770908,92578.0,92550.0,0.1123786]
[1735621337581,0.054104,92566.0,92550.0,0.1123786]
[1735621337878,0.414944,92566.0,92550.0,0.1123786]
[1735621338890,0.054112,92554.0,92550.0,0.09399909]
[1735621339088,0.054112,92554.0,92548.0,0.054114]
[1735621339991,0.36084,92566.0,92548.0,0.054114]
[1735621340193,0.052112,92553.0,92548.0,0.054114]
[1735621340393,0.052112,92553.0,92548.0,0.058114]
[1735621340896,0.052112,92553.0,92548.0,0.067114]
[1735621341090,0.052112,92553.0,92548.0,0.063114]
[1735621341293,0.052112,92553.0,92548.0,0.067114]
[1735621341494,0.053112,92553.0,92548.0,0.067114]
[1735621344392,0.001,92553.0,92551.0,0.054113]
[1735621344986,0.001,92553.0,92552.0,1.5]
[1735621345791,0.36084,92566.0,92553.0,0.054112]
[1735621346007,0.36084,92566.0,92562.0,0.054106]
[1735621346197,0.414944,92566.0,92562.0,0.054106]
[1735621347485,0.414944,92566.0,92562.0,0.057106]
[1735621347687,0.054144,92566.0,92562.0,0.038106]
[1735621350297,0.054106,92563.0,92562.0,0.004]
[1735621352992,0.06796829,92563.0,92562.0,0.004]
[1735621353395,0.054106,92563.0,92562.0,0.004]
[1735621354699,4e-05,92566.0,92562.0,0.004]
[1735621354904,4e-05,92566.0,92564.0,0.054105]
[1735621356103,4e-05,92566.0,92565.0,1.5]
[1735621357601,4e-05,92566.0,92565.0,1.48]
[1735621357902,4e-05,92566.0,92565.0,1.482]
[1735621360291,4e-05,92566.0,92565.0,0.002]
[1735621370896,0.054095,92582.0,92565.0,0.002]
[1735621371107,0.065,92587.0,92576.0,0.3608]
[1735621371408,0.0335,92587.0,92583.0,0.054094]
[1735621371606,0.0335,92587.0,92576.0,0.3608]
[1735621372007,4e-05,92577.0,92576.0,0.414898]
[1735621372708,4e-05,92577.0,92576.0,0.394898]
[1735621373211,0.054088,92594.0,92586.0,0.054092]
[1735621373212,0.002,92587.0,92586.0,0.054092]
[1735621373512,0.002,92587.0,92586.0,0.414892]
[1735621373712,0.009,92587.0,92586.0,0.414892]
[1735621374305,0.01,92587.0,92586.0,0.415892]
[1735621374807,0.008,92587.0,92586.0,0.415892]
[1735621375909,0.012,92587.0,92586.0,0.415892]
[1735621377508,0.012,92587.0,92586.0,0.395892]
[1735621378702,0.012,92587.0,92586.0,0.3618]
[1735621378902,0.066092,92587.0,92586.0,0.3618]
[1735621381519,0.066092,92587.0,92586.0,0.001]
[1735621382719,0.066092,92587.0,92583.0,0.035094]
[1735621383306,4e-05,92584.0,92583.0,0.035094]
[1735621384020,4e-05,92584.0,92583.0,0.036094]
[1735621384618,0.00704,92584.0,92583.0,0.036094]
[1735621384817,0.00704,92584.0,92583.0,1.536094]
[1735621386424,0.01004,92584.0,92583.0,1.536094]
[1735621387626,0.01004,92584.0,92583.0,1.501]
[1735621388224,0.01004,92584.0,92583.0,1.555094]
[1735621392629,0.01004,92584.0,92583.0,0.054094]
[1735621396232,0.01004,92584.0,92583.0,1.554094]
[1735621399036,0.00704,92584.0,92583.0,1.534094]
[1735621399330,0.00404,92584.0,92583.0,1.534094]
[1735621401432,0.2908377,92599.0,92583.0,1.534094]
[1735621401631,0.05409,92590.0,92589.0,0.1123786]
[1735621401832,0.2908377,92599.0,92589.0,4e-05]
[1735621402030,0.05409,92590.0,92589.0,4e-05]
[1735621402523,0.2908377,92599.0,92583.0,1.514774]
[1735621402728,0.2908377,92599.0,92583.0,1.5]
[1735621403035,4e-05,92584.0,92583.0,1.5]
[1735621404021,4e-05,92584.0,92583.0,1.554094]
[1735621405225,0.00304,92584.0,92583.0,1.554094]
[1735621407533,0.00304,92584.0,92583.0,1.534094]
[1735621409624,0.054092,92587.0,92583.0,1.534094]
[1735621409828,0.0314,92599.0,92583.0,1.48]
[1735621410039,0.05409,92590.0,92587.0,0.3608]
[1735621410238,0.054091,92589.0,92587.0,0.3608]
[1735621411535,0.058091,92589.0,92587.0,0.3608]
[1735621412131,0.060091,92589.0,92587.0,0.3608]
[1735621412532,0.060091,92589.0,92587.0,0.3408]
[1735621414039,0.058091,92589.0,92587.0,0.394892]
[1735621414639,0.056091,92589.0,92587.0,0.394892]
[1735621414838,0.057091,92589.0,92587.0,0.394892]
[1735621415932,0.057091,92589.0,92587.0,0.40719159]
[1735621417640,0.057091,92589.0,92587.0,0.38719159]
[1735621422639,0.057091,92589.0,92587.0,0.36719159]
[1735621427750,0.057091,92589.0,92587.0,0.34719159]
[1735621427949,0.00260267,92600.0,92587.0,0.34719159]
[1735621428346,0.05409,92591.0,92590.0,0.07365134]
[1735621428556,0.00260267,92600.0,92587.0,0.34719159]
[1735621428745,0.002,92589.0,92587.0,0.34719159]
[1735621428948,4e-05,92588.0,92587.0,0.34719159]
[1735621431152,0.00204,92588.0,92587.0,0.34719159]
[1735621432050,0.00304,92588.0,92587.0,0.34719159]
[1735621432548,0.00304,92588.0,92587.0,0.32719159]
[1735621432851,0.00260267,92600.0,92597.0,0.054086]
[1735621433151,0.00260267,92600.0,92587.0,0.27309959]
[1735621433349,0.00260267,92600.0,92599.0,0.054085]
[1735621434148,0.00460267,92600.0,92599.0,0.054085]
[1735621434349,0.00464267,92600.0,92599.0,0.054085]
[1735621434949,0.00564267,92600.0,92599.0,0.054085]
[1735621435748,0.00464267,92600.0,92599.0,0.054085]
[1735621435947,0.00564267,92600.0,92599.0,0.054085]
[1735621436151,0.00364267,92600.0,92599.0,0.054085]
[1735621436348,0.00564267,92600.0,92599.0,0.054085]
[1735621437551,0.00564267,92600.0,92599.0,0.034085]
[1735621442555,0.00564267,92600.0,92588.0,4e-05]
[1735621442760,0.00564267,92600.0,92590.0,0.07365134]
[1735621442958,0.00560267,92600.0,92590.0,0.07365134]
[1735621443158,4e-05,92591.0,92590.0,0.12774134]
[1735621443359,4e-05,92591.0,92590.0,0.05409]
[1735621443959,4e-05,92591.0,92590.0,0.05609]
[1735621444362,4e-05,92591.0,92590.0,0.05409]
[1735621444560,4e-05,92591.0,92590.0,0.05609]
[1735621444966,4e-05,92591.0,92590.0,0.05709]
[1735621447566,4e-05,92591.0,92590.0,0.03709]
[1735621452668,4e-05,92591.0,92590.0,0.003]
[1735621453170,4e-05,92591.0,92590.0,0.05709]
[1735621457274,4e-05,92591.0,92590.0,0.003]
[1735621458776,4e-05,92591.0,92582.0,0.037135]
[1735621459068,4e-05,92583.0,92582.0,0.037135]
[1735621460574,0.054085,92599.0,92582.0,0.003]
[1735621460874,0.054085,92599.0,92591.0,0.3608]
[1735621461179,0.00260267,92600.0,92598.0,0.054085]
[1735621462669,0.00260267,92600.0,92598.0,0.034085]
[1735621462866,0.00860267,92600.0,92598.0,0.034085]
[1735621463071,0.27049772,92609.0,92598.0,0.034085]
[1735621463466,0.004,92600.0,92599.0,1.5]
[1735621463666,0.006,92600.0,92599.0,1.5]
[1735621464471,0.004,92600.0,92599.0,1.5]
[1735621465270,0.054083,92603.0,92599.0,1.5]
[1735621466273,0.002,92600.0,92599.0,1.5]
[1735621466876,0.054083,92603.0,92599.0,1.5]
[1735621467081,0.056083,92603.0,92598.0,0.04625115]
[1735621467484,4e-05,92599.0,92598.0,0.04625115]
[1735621467679,4e-05,92599.0,92598.0,0.01216615]
[1735621467883,4e-05,92599.0,92598.0,0.054085]
[1735621469280,0.00204,92599.0,92598.0,0.054085]
[1735621472587,0.00204,92599.0,92598.0,0.034085]
[1735621477690,0.00204,92599.0,92596.0,1.5006]
[1735621477884,0.00204,92599.0,92598.0,0.054085]
[1735621478078,0.002,92599.0,92598.0,0.054085]
[1735621478289,0.00204,92599.0,92598.0,0.054085]
[1735621478788,4e-05,92599.0,92598.0,0.054085]
[1735621478992,0.00104,92599.0,92598.0,0.054085]
[1735621479591,4e-05,92599.0,92598.0,0.054085]
[1735621479787,0.00204,92599.0,92598.0,0.054085]
[1735621482691,0.00204,92599.0,92598.0,0.034085]
[1735621486787,0.00204,92599.0,92598.0,0.068285]
[1735621487783,0.00204,92599.0,92598.0,0.0342]
[1735621487989,0.00204,92599.0,92598.0,0.088285]
[1735621492597,0.00204,92599.0,92598.0,0.068285]
[1735621494092,0.00204,92599.0,92598.0,0.054085]
[1735621497590,0.00204,92599.0,92598.0,0.034085]
[1735621502603,0.00204,92599.0,92596.0,0.3608]
[1735621502909,0.002,92599.0,92598.0,0.054085]
[1735621503707,0.00204,92599.0,92598.0,0.054085]
[1735621504404,0.00204,92599.0,92595.0,1.51285558]
[1735621504405,0.054087,92596.0,92595.0,0.00064]
[1735621504612,0.054087,92596.0,92595.0,4e-05]
[1735621504805,0.054127,92596.0,92595.0,4e-05]
[1735621507610,0.054088,92593.0,92590.0,1.53469]
[1735621507815,0.054088,92593.0,92590.0,1.53413]
[1735621508010,4e-05,92591.0,92590.0,1.53413]
[1735621509715,4e-05,92591.0,92590.0,1.53513]
[1735621512526,4e-05,92591.0,92590.0,1.51513]
[1735621512716,4e-05,92591.0,92590.0,1.501]
[1735621513911,4e-05,92591.0,92590.0,1.55509]
[1735621518926,4e-05,92591.0,92590.0,1.53509]
[1735621522524,4e-05,92591.0,92590.0,1.51509]
[1735621525227,4e-05,92591.0,92590.0,1.87589]
[1735621527836,4e-05,92591.0,92590.0,1.85589]
[1735621532738,4e-05,92591.0,92590.0,1.83589]
[1735621537732,4e-05,92591.0,92590.0,1.81589]
[1735621539942,0.054081,92606.0,92590.0,1.7618]
[1735621540140,0.054081,92606.0,92603.0,0.3608]
[1735621541737,0.056081,92606.0,92603.0,0.3608]
[1735621542542,0.056081,92606.0,92603.0,0.3408]
[1735621544328,0.054081,92606.0,92603.0,0.3408]
[1735621544539,0.055081,92606.0,92603.0,0.3408]
[1735621545747,0.001,92606.0,92604.0,0.054082]
[1735621546642,0.054077,92612.0,92604.0,0.054082]
[1735621546846,0.054078,92611.0,92604.0,0.054082]
[1735621547433,0.001,92606.0,92604.0,0.054082]
[1735621547636,0.001,92606.0,92604.0,0.034082]
[1735621549932,0.055078,92611.0,92604.0,0.034082]
[1735621550749,0.001,92606.0,92604.0,0.034082]
[1735621551533,0.054078,92611.0,92604.0,0.034082]
[1735621551534,0.055078,92611.0,92604.0,0.034082]
[1735621551747,0.055078,92611.0,92605.0,0.054081]
[1735621552650,0.055078,92611.0,92605.0,0.034081]
[1735621553648,0.001,92606.0,92605.0,0.034081]
[1735621554449,0.055078,92611.0,92605.0,0.034081]
[1735621554949,0.055078,92611.0,92602.0,0.3608]
[1735621555155,0.055078,92611.0,92602.0,0.37214581]
[1735621555344,4e-05,92603.0,92602.0,0.42622881]
[1735621557252,4e-05,92603.0,92602.0,0.42722881]
[1735621558048,4e-05,92603.0,92602.0,0.40722881]
[1735621561253,4e-05,92603.0,92602.0,0.06642881]
[1735621562661,4e-05,92603.0,92602.0,0.04642881]
[1735621563059,0.054123,92603.0,92602.0,0.001]
[1735621567662,0.054123,92603.0,92601.0,0.3418]
[1735621567960,0.054083,92603.0,92602.0,0.001]
[1735621568860,0.054123,92603.0,92602.0,0.001]
[1735621569754,0.054123,92603.0,92601.0,0.3428]
[1735621570151,4e-05,92602.0,92601.0,0.3428]
[1735621570357,0.054083,92603.0,92602.0,0.00096]
[1735621571057,0.054083,92603.0,92601.0,0.3428]